bitfinex/quotes_ETHUSD_20251120
["timestamp","ask_amount","ask_price","bid_price","bid_amount"]
[1763652835841,0.90699264,2983.2,2982.4,4.07100433]
[1763652836042,0.90699264,2983.2,2982.4,0.71801312]
[1763652836367,0.90699264,2983.2,2982.3,0.4739]
[1763652836368,0.90699264,2983.2,2982.3,3.82699864]
[1763652836942,0.90699264,2983.2,2982.3,0.4739]
[1763652837271,0.90699264,2983.2,2982.3,3.82699121]
[1763652837674,0.90699264,2983.2,2982.3,7.18010793]
[1763652837835,3.35221749,2983.1,2982.3,7.18010793]
[1763652838040,6.70443498,2983.1,2982.4,0.71801079]
[1763652838366,3.35221749,2983.1,2982.3,0.4739]
[1763652838873,0.482,2983.0,2982.1,0.001]
[1763652839061,1.38899264,2983.0,2982.1,0.001]
[1763652839239,0.575904,2982.9,2982.1,0.001]
[1763652839587,0.117,2982.8,2982.1,0.001]
[1763652839752,0.0673,2982.2,2982.1,0.001]
[1763652839953,3.53752915,2982.2,2982.1,0.001]
[1763652840272,0.6017,2982.2,2982.1,0.001]
[1763652840474,4.01882915,2982.2,2982.1,0.001]
[1763652840677,0.484,2983.3,2982.1,0.001]
[1763652840855,1.50599264,2982.8,2982.1,0.001]
[1763652841243,0.117,2982.8,2982.1,0.001]
[1763652841489,0.002,2983.3,2982.7,0.4766]
[1763652841780,0.002,2983.3,2982.8,0.4766]
[1763652841781,0.117,2982.9,2982.8,0.4766]
[1763652842156,0.117,2982.9,2982.5,3.35287196]
[1763652842352,0.117,2982.9,2982.6,0.3826772]
[1763652842353,3.46949571,2982.9,2982.6,0.3826772]
[1763652842557,0.0673,2982.7,2982.1,0.001]
[1763652842766,0.0048,2982.2,2982.1,0.001]
[1763652843092,0.1218,2982.2,2982.1,0.001]
[1763652843279,1.009304,2982.2,2982.1,0.001]
[1763652843695,1.108504,2982.2,2982.1,0.001]
[1763652843980,1.108504,2982.2,2981.9,0.001]
[1763652843981,1.85709664,2982.1,2981.9,0.001]
[1763652844183,1.85709664,2982.1,2980.1,0.88577086]
[1763652844184,1.31249664,2981.9,2980.0,0.1824]
[1763652844396,0.405504,2981.2,2980.0,0.1824]
[1763652844604,0.1305,2981.7,2980.1,10.54067627]
[1763652844752,0.89014269,2982.3,2980.1,10.54067627]
[1763652844753,7.18733408,2982.7,2981.6,0.4766]
[1763652844952,1.02399264,2982.6,2981.6,0.4766]
[1763652845165,7.18733408,2982.7,2981.6,0.4766]
[1763652845166,0.482,2982.7,2981.6,0.9505]
[1763652845470,0.117,2982.5,2981.6,0.4766]
[1763652845790,0.117,2982.5,2981.1,0.1815]
[1763652845791,0.117,2982.5,2981.1,0.6554]
[1763652845947,0.482,2982.7,2981.6,0.4739]
[1763652845948,0.117,2982.4,2981.6,0.4739]
[1763652846586,0.117,2982.4,2981.2,3.35435395]
[1763652846747,0.90699264,2982.6,2981.3,0.82748539]
[1763652846959,0.117,2982.5,2981.3,0.82748539]
[1763652847163,0.117,2982.5,2981.4,0.4739]
[1763652847910,0.117,2982.5,2981.5,6.70803286]
[1763652848202,0.117,2982.5,2981.4,3.82800542]
[1763652848203,6.82284734,2982.5,2981.4,3.82800542]
[1763652848411,6.82284734,2982.5,2981.5,0.50673617]
[1763652848570,0.117,2982.5,2981.5,0.99783617]
[1763652848971,0.117,2982.5,2981.6,0.4911]
[1763652849699,3.46989519,2982.5,2981.6,0.4911]
[1763652849899,0.117,2982.5,2982.4,0.681]
[1763652850086,0.117,2982.8,2982.4,4.52510429]
[1763652850288,0.117,2982.8,2982.2,0.187]
[1763652850963,0.117,2982.8,2982.2,3.54020532]
[1763652851203,0.117,2982.8,2982.2,4.03130532]
[1763652851507,0.117,2982.8,2982.2,0.6781]
[1763652851806,0.117,2982.8,2982.2,3.54020449]
[1763652852008,0.117,2982.8,2982.7,0.494]
[1763652852217,0.002,2983.3,2982.7,0.494]
[1763652852501,0.002,2983.3,2983.2,0.681]
[1763652853000,0.002,2983.6,2983.2,0.6781]
[1763652853160,0.002,2983.6,2983.3,0.4911]
[1763652853686,0.002,2983.6,2983.4,0.405504]
[1763652853998,0.002,2983.6,2983.5,3.84286805]
[1763652854295,0.002,2983.6,2983.2,0.187]
[1763652854517,0.002,2983.6,2983.3,0.4911]
[1763652854920,0.002,2983.6,2983.2,0.187]
[1763652855333,0.002,2983.6,2983.3,0.4911]
[1763652856015,0.002,2983.6,2983.4,6.7037608]
[1763652856187,0.002,2983.6,2983.5,1.29916317]
[1763652856590,0.002,2983.6,2983.4,3.3518804]
[1763652856894,0.002,2983.6,2983.4,0.4911]
[1763652857094,0.002,2983.6,2983.2,0.187]
[1763652857299,0.002,2983.6,2983.1,0.187]
[1763652857837,0.002,2983.6,2982.5,3.35284889]
[1763652857838,0.117,2983.5,2982.5,0.88577086]
[1763652858024,0.117,2983.5,2982.3,2.37091958]
[1763652858025,6.7037608,2983.4,2982.3,1.18044652]
[1763652858221,0.4563,2983.3,2982.2,0.187]
[1763652858399,0.861804,2983.3,2982.1,0.188]
[1763652858830,0.4563,2983.2,2982.1,0.188]
[1763652859038,0.4563,2983.2,2982.1,0.6791]
[1763652859211,0.4563,2983.2,2982.1,4.0324416]
[1763652859417,0.4563,2983.2,2982.1,4.78983289]
[1763652859750,0.90699264,2983.4,2982.2,0.4911]
[1763652859904,3.35199275,2983.3,2982.3,6.70623344]
[1763652860100,3.46878691,2983.5,2982.4,0.90699264]
[1763652860415,3.46878691,2983.5,2982.2,0.90699264]
[1763652860416,7.27687382,2983.5,2982.2,0.90699264]
[1763652860901,7.27687382,2983.5,2982.3,0.4911]
[1763652861103,6.82057382,2983.5,2982.3,0.4911]
[1763652861314,0.4563,2983.4,2982.3,0.4911]
[1763652862152,0.117,2983.5,2982.4,10.05901287]
[1763652862450,0.117,2983.5,2982.5,1.05501129]
[1763652862656,0.117,2983.5,2982.5,1.54611129]
[1763652862951,0.002,2983.6,2983.4,0.187]
[1763652863171,0.002,2983.6,2983.1,0.4911]
[1763652863356,0.002,2983.6,2982.5,1.96200393]
[1763652863357,0.002,2983.6,2982.7,0.4911]
[1763652863564,0.002,2983.6,2983.1,0.187]
[1763652863854,3.35367289,2983.6,2983.1,0.187]
[1763652864214,0.0012,2983.6,2983.1,3.53921453]
[1763652864417,0.0012,2983.6,2983.1,0.8761578]
[1763652864659,0.0012,2983.6,2982.5,0.4911]
[1763652864866,0.0012,2983.6,2982.2,0.90699264]
[1763652864867,0.4563,2983.5,2982.2,3.35322468]
[1763652865019,0.4563,2983.5,2982.3,0.4911]
[1763652865717,0.0012,2983.6,2982.3,1.39809264]
[1763652865917,0.0012,2983.6,2982.4,1.14577756]
[1763652866131,0.0012,2983.6,2982.5,6.70578372]
[1763652866451,0.0012,2983.6,2982.6,0.90699264]
[1763652866652,0.0012,2983.6,2983.5,0.187]
[1763652867026,0.0012,2983.6,2983.5,0.6781]
[1763652870003,0.4563,2983.4,2982.2,0.90699264]
[1763652870192,6.7039855,2983.3,2982.3,3.84421672]
[1763652870395,6.7039855,2983.3,2982.3,0.4911]
[1763652870580,6.7039855,2983.3,2982.1,0.001]
[1763652870581,1.36329264,2983.2,2982.1,0.001]
[1763652870892,0.116,2983.1,2982.1,0.188]
[1763652871189,0.116,2983.1,2982.1,3.54124708]
[1763652871789,0.116,2983.1,2982.1,0.188]
[1763652871965,0.116,2983.1,2982.1,3.54133249]
[1763652872166,3.4683208,2983.1,2982.1,3.91426574]
[1763652872395,6.8206416,2983.1,2982.1,7.26760734]
[1763652872568,0.116,2983.1,2982.2,0.52463229]
[1763652872766,0.116,2983.1,2982.2,0.4911]
[1763652872983,3.46824722,2983.1,2982.2,0.4911]
[1763652873204,0.2596,2982.3,2982.1,0.001]
[1763652873389,0.1206,2982.2,2982.1,0.001]
[1763652873574,0.5759,2982.2,2982.1,0.001]
[1763652873879,0.504704,2982.1,2981.9,0.001]
[1763652874075,0.865404,2982.1,2981.9,0.001]
[1763652874373,4.66595069,2982.0,2981.9,0.001]
[1763652874699,5.12585069,2982.0,2981.9,0.001]
[1763652875111,0.0992,2981.8,2981.6,0.001]
[1763652875291,0.405504,2981.6,2980.0,0.6536]
[1763652875601,1.31249664,2981.3,2980.0,0.187]
[1763652875804,0.1838,2980.1,2979.2,1.19047306]
[1763652875991,0.116,2980.0,2979.1,1.37257306]
[1763652876192,6.7116346,2979.9,2978.5,1.19047306]
[1763652876367,1.31249664,2979.8,2978.4,0.1821]
[1763652876709,1.77239664,2979.8,2978.4,3.5395789]
[1763652876882,0.4599,2979.7,2978.4,3.5395789]
[1763652877475,0.4599,2979.7,2978.4,4.0061789]
[1763652877680,0.17723966,2979.6,2978.2,0.4666]
[1763652877981,0.90699264,2980.0,2978.2,0.90699264]
[1763652878180,0.90699264,2979.7,2978.4,6.71501476]
[1763652878612,0.90699264,2979.7,2978.5,0.4936]
[1763652878814,1.36699264,2979.7,2978.5,0.4936]
[1763652879079,0.117,2979.9,2978.5,0.4936]
[1763652879498,3.47283694,2979.9,2978.5,0.4936]
[1763652879700,4.37983845,2979.9,2978.5,0.4936]
[1763652879990,3.47281884,2979.9,2978.5,0.4936]
[1763652880194,3.35604255,2979.7,2978.5,3.85099434]
[1763652880393,6.7120851,2979.7,2978.5,0.4936]
[1763652880585,1.36699264,2979.6,2978.1,3.53990699]
[1763652880782,1.02399264,2979.9,2978.4,0.4936]
[1763652881087,1.02399264,2979.8,2978.4,0.4936]
[1763652881295,0.117,2979.8,2978.4,0.4936]
[1763652881498,0.117,2979.8,2978.5,1.31249664]
[1763652881795,0.151,2981.0,2979.7,0.1939]
[1763652881796,0.117,2980.2,2979.7,0.1939]
[1763652882010,0.117,2980.3,2979.8,0.4936]
[1763652882199,0.46,2982.2,2979.8,0.4936]
[1763652882543,1.07394269,2983.2,2979.8,0.4936]
[1763652882544,0.151,2981.6,2980.7,0.1939]
[1763652882684,0.151,2981.9,2980.7,0.6875]
[1763652882882,0.117,2982.4,2980.8,0.405504]
[1763652883113,0.117,2982.4,2980.9,0.32869966]
[1763652883291,0.117,2982.4,2981.0,0.4936]
[1763652884217,3.47003805,2982.4,2981.2,0.90699264]
[1763652884421,6.8230761,2982.4,2981.1,0.90699264]
[1763652884583,0.46,2982.3,2981.0,1.40059264]
[1763652884783,1.36699264,2982.3,2980.8,3.35478342]
[1763652885020,1.36699264,2982.3,2980.7,3.54881281]
[1763652885021,0.405504,2982.2,2980.7,3.54881281]
[1763652885330,0.405504,2982.2,2980.8,0.90699264]
[1763652885331,0.865504,2982.2,2980.8,0.90699264]
[1763652885808,0.46,2982.1,2980.7,3.54881281]
[1763652886120,0.405504,2982.0,2980.4,0.1939]
[1763652886320,1.31249664,2981.6,2980.2,0.1939]
[1763652886616,1.31249664,2981.6,2980.2,3.54937949]
[1763652886819,0.405504,2981.4,2980.2,0.1939]
[1763652887010,0.117,2981.3,2980.3,0.4936]
[1763652888190,0.1162,2981.3,2980.4,6.71050864]
[1763652888728,6.8247005,2981.3,2980.3,0.4936]
[1763652888913,6.8247005,2981.3,2980.2,3.54931088]
[1763652888914,7.2847005,2981.3,2980.2,3.54931088]
[1763652889113,0.46,2981.2,2980.1,1.10089264]
[1763652889518,0.46,2981.2,2980.1,0.1939]
[1763652889831,0.1162,2981.3,2980.2,0.4936]
[1763652890034,0.46,2981.2,2980.1,0.1939]
[1763652890201,0.46,2981.2,2980.1,0.63955973]
[1763652890400,0.46,2981.2,2980.2,3.35547949]
[1763652890401,3.35446647,2981.1,2980.2,3.35547949]
[1763652890602,6.70893294,2981.1,2980.2,3.35547949]
[1763652890801,3.35446647,2981.1,2980.2,3.35547949]
[1763652891128,3.47044143,2981.3,2980.3,0.4936]
[1763652891329,0.1162,2981.3,2980.4,0.7204559]
[1763652891936,0.1162,2981.3,2980.5,0.4936]
[1763652892095,0.1162,2981.3,2980.2,10.06643847]
[1763652892096,0.151,2980.5,2978.8,2.97618265]
[1763652892297,3.35592992,2979.8,2979.1,0.1939]
[1763652892496,0.117,2979.7,2979.1,0.6875]
[1763652892737,0.117,2980.3,2979.2,0.03356605]
[1763652892905,0.117,2980.3,2979.3,0.40777655]
[1763652893429,0.117,2980.3,2979.4,0.6106]
[1763652894323,0.117,2980.3,2979.6,0.90699264]
[1763652894635,0.117,2980.3,2979.3,0.40777655]
[1763652894636,0.3008,2980.8,2979.7,0.4936]
[1763652895008,0.7608,2980.8,2979.5,0.90699264]
[1763652895198,1.66779264,2980.8,2979.4,3.84998047]
[1763652895529,0.46,2980.7,2979.4,7.20636094]
[1763652895734,0.46,2980.7,2979.4,3.84998047]
[1763652895939,1.20779264,2980.8,2979.5,0.4936]
[1763652896098,0.3008,2980.8,2979.6,0.72063609]
[1763652896432,3.35491663,2980.7,2979.8,6.71185984]
[1763652896604,6.70983326,2980.7,2979.8,6.71185984]
[1763652897002,0.90699264,2980.6,2979.4,3.35638047]
[1763652897202,1.36699264,2980.6,2979.5,0.38499805]
[1763652897402,0.46,2980.5,2979.5,0.38499805]
[1763652898398,6.71050864,2980.4,2979.5,0.38499805]
[1763652898606,0.117,2980.3,2979.1,0.1939]
[1763652898908,0.117,2980.3,2979.2,10.5634174]
[1763652899108,0.117,2980.3,2979.3,0.4936]
[1763652900525,0.117,2980.3,2978.4,1.19147306]
[1763652900526,1.31249664,2980.1,2978.4,1.19147306]
[1763652900698,1.31249664,2980.1,2978.6,3.55118194]
[1763652900699,0.151,2979.4,2978.6,3.55118194]
[1763652900902,1.31249664,2980.1,2978.6,3.55118194]
[1763652900903,0.117,2979.3,2978.7,0.4936]
[1763652901105,0.151,2979.9,2978.7,1.40059264]
[1763652901106,0.117,2979.9,2978.7,1.40059264]
[1763652901408,0.117,2980.0,2978.8,0.4936]
[1763652902305,0.151,2979.9,2978.8,1.17833255]
[1763652902506,0.90699264,2979.7,2978.4,0.001]
[1763652902732,0.90699264,2979.3,2978.4,0.001]
[1763652903005,0.117,2979.2,2978.4,0.4946]
[1763652903353,0.117,2979.2,2979.1,0.1939]
[1763652903546,0.405504,2980.3,2979.1,0.1939]
[1763652903547,0.1838,2980.8,2979.1,0.6875]
[1763652903752,3.93191663,2980.7,2979.2,0.43907005]
[1763652903904,3.93191663,2980.7,2979.2,0.4936]
[1763652904109,3.93191663,2980.7,2979.1,0.1939]
[1763652904110,1.36699264,2980.6,2979.1,0.1939]
[1763652904416,0.405504,2980.5,2978.7,0.4936]
[1763652904635,1.31249664,2980.3,2978.7,3.85067297]
[1763652905142,0.405504,2980.1,2978.4,0.001]
[1763652905313,0.405504,2979.9,2978.4,0.33687253]
[1763652905512,0.405504,2979.9,2978.4,7.54542231]
[1763652905716,0.611,2979.8,2978.4,7.54542453]
[1763652906018,0.611,2979.8,2978.4,3.69437314]
[1763652906205,0.611,2979.8,2978.5,0.4936]
[1763652906546,0.90699264,2979.6,2978.6,0.41879731]
[1763652906913,3.35593615,2979.8,2978.7,0.52717169]
[1763652907138,0.90699264,2979.8,2978.7,0.4936]
[1763652907728,0.151,2979.9,2978.7,0.4936]
[1763652907928,1.05799264,2979.9,2978.7,0.4936]
[1763652908278,0.46,2979.8,2978.5,0.4571]
[1763652908482,1.05799264,2979.9,2978.6,0.4571]
[1763652908629,11.4375824,2979.8,2978.6,0.4571]
[1763652908829,0.90699264,2979.7,2978.6,0.001]
[1763652909174,1.31249664,2979.3,2978.6,0.001]
[1763652909336,0.117,2979.2,2978.6,0.001]
[1763652909531,0.5798,2979.2,2978.6,0.001]
[1763652910041,0.117,2979.2,2978.6,0.001]
[1763652910570,10.07049345,2979.0,2978.6,0.001]
[1763652910729,1.31249664,2978.9,2978.6,0.001]
[1763652910930,0.117,2979.2,2978.6,0.001]
[1763652911365,3.47360874,2979.2,2978.6,0.001]
[1763652911534,0.117,2979.2,2978.6,0.001]
[1763652911734,0.117,2979.2,2978.6,0.4581]
[1763652912048,3.35615717,2979.6,2979.1,0.1958]
[1763652912049,0.117,2979.6,2979.1,0.1958]
[1763652912250,0.1162,2979.6,2978.6,0.4581]
[1763652912755,0.1162,2979.6,2978.6,0.001]
[1763652912756,0.90699264,2979.5,2978.6,0.001]
[1763652912978,1.36979264,2979.5,2978.6,0.001]
[1763652913182,0.868304,2979.4,2978.6,0.001]
[1763652913640,0.405504,2979.2,2978.6,0.001]
[1763652913830,0.117,2979.1,2978.6,0.001]
[1763652914032,0.405504,2979.0,2978.6,0.001]
[1763652914238,0.868304,2979.0,2978.6,0.001]
[1763652914672,0.90699264,2978.7,2978.6,0.001]
[1763652915072,3.35696036,2978.9,2978.6,0.001]
[1763652915274,0.90699264,2978.8,2978.6,0.001]
[1763652915785,0.4628,2978.7,2978.6,0.001]
[1763652916473,0.868304,2978.7,2978.6,0.001]
[1763652916692,5.13246587,2978.7,2978.6,0.001]
[1763652917353,4.72696187,2978.7,2978.6,0.001]
[1763652917559,1.48679264,2978.7,2978.6,0.001]
[1763652917759,4.38116187,2978.7,2978.6,0.001]
[1763652917982,4.84396187,2978.7,2978.6,0.001]
[1763652918403,1.02399264,2978.7,2978.6,0.001]
[1763652918591,4.84396187,2978.7,2978.6,0.001]
[1763652919086,5.24946587,2978.7,2978.6,0.001]
[1763652919867,5.73248201,2980.4,2978.6,0.001]
[1763652919868,0.4628,2979.4,2978.6,0.001]
[1763652920068,0.117,2979.3,2978.6,0.001]
[1763652920789,0.90699264,2979.1,2978.6,0.001]
[1763652921103,0.117,2979.3,2978.6,0.4581]
[1763652921333,6.71095898,2980.2,2979.1,0.1958]
[1763652921615,0.117,2980.1,2979.1,0.1958]
[1763652921912,0.151,2979.2,2978.6,0.001]
[1763652922058,0.117,2979.1,2978.6,0.001]
[1763652922280,2.09070343,2980.5,2978.6,0.001]
[1763652922281,0.117,2979.0,2978.7,0.4571]
[1763652922483,10.06518643,2980.6,2978.7,0.4571]
[1763652922730,6.71050864,2980.4,2978.8,3.35705653]
[1763652922927,0.90699264,2980.3,2978.6,0.001]
[1763652923229,0.405504,2980.2,2978.6,0.001]
[1763652923534,0.405504,2980.0,2978.6,0.001]
[1763652923730,0.117,2979.9,2978.6,0.001]
[1763652924030,0.7308,2979.9,2978.6,0.001]
[1763652924234,0.7308,2979.9,2978.7,0.4571]
[1763652924382,0.868304,2979.8,2978.8,0.38153447]
[1763652924581,0.868304,2979.8,2978.6,0.001]
[1763652924814,1.31249664,2979.6,2978.6,0.001]
[1763652925178,0.4628,2979.5,2978.6,0.001]
[1763652925378,0.117,2979.4,2978.6,0.001]
[1763652925613,0.117,2979.4,2978.6,0.4581]
[1763652926706,3.35649313,2979.3,2978.6,3.81532739]
[1763652926914,3.35649313,2979.3,2978.7,0.38153274]
[1763652927112,3.47338554,2979.4,2978.7,0.38153274]
[1763652927316,0.117,2979.4,2978.7,0.83863274]
[1763652927501,3.47339527,2979.4,2978.7,0.83863274]
[1763652927703,6.82979054,2979.4,2978.7,0.83863274]
[1763652928018,3.47339527,2979.4,2978.7,0.4571]
[1763652928214,6.82979054,2979.4,2978.7,0.4571]
[1763652929431,3.47339527,2979.4,2978.7,3.81424693]
[1763652929585,0.117,2979.4,2978.8,0.4658]
[1763652929807,0.002,2979.9,2979.3,0.1857]
[1763652930005,0.002,2979.9,2979.5,1.19047306]
[1763652930227,0.002,2979.9,2979.5,0.405504]
[1763652930499,0.002,2979.9,2979.6,0.67197771]
[1763652930702,0.002,2979.9,2979.3,0.1857]
[1763652931352,0.153,2979.9,2978.9,0.1857]
[1763652931516,0.861304,2979.8,2978.6,0.4668]
[1763652931704,0.153,2979.9,2978.6,0.4668]
[1763652931905,0.117,2979.8,2978.6,10.53864582]
[1763652932219,0.117,2979.8,2978.7,1.96095722]
[1763652932407,0.117,2979.8,2978.7,2.42675722]
[1763652932606,0.117,2979.8,2978.8,0.4658]
[1763652932801,0.117,2979.8,2978.9,6.71388766]
[1763652932802,3.47293165,2979.8,2978.9,6.71388766]
[1763652933059,0.117,2979.8,2978.9,6.71388766]
[1763652933210,0.117,2979.8,2979.0,1.18376877]
[1763652933610,0.117,2979.8,2979.1,0.6515]
[1763652934227,0.117,2979.8,2979.2,0.4658]
[1763652934807,0.117,2979.8,2979.3,3.35649313]
[1763652935016,0.117,2979.8,2979.4,0.4658]
[1763652936326,0.002,2979.9,2979.6,6.86494393]
[1763652936529,0.002,2979.9,2979.7,0.68649439]
[1763652936742,0.002,2979.9,2979.7,1.15229439]
[1763652937049,0.0012,2979.9,2979.7,0.4658]
[1763652938140,0.0012,2979.9,2979.8,0.405504]
[1763652938456,0.117,2981.0,2979.8,0.405504]
[1763652938662,0.117,2981.0,2979.5,2.69270223]
[1763652938663,0.1704,2980.9,2979.9,0.4724]
[1763652938833,3.35480407,2980.8,2979.9,0.4724]
[1763652939034,6.70960814,2980.8,2979.9,3.82818969]
[1763652939272,6.70960814,2980.8,2979.5,1.37939264]
[1763652939483,3.35480407,2980.8,2979.6,0.4724]
[1763652939634,6.70960814,2980.8,2979.6,0.4724]
[1763652940481,0.90699264,2980.7,2979.6,0.4724]
[1763652940833,6.71005836,2980.6,2979.7,3.35604255]
[1763652941271,0.117,2980.5,2979.7,3.35604255]
[1763652941572,4.01861973,2980.9,2979.7,3.35604255]
[1763652941573,0.1704,2980.9,2979.8,0.6544]
[1763652941869,0.7809,2980.9,2979.8,0.6544]
[1763652942254,0.4935,2980.8,2979.8,0.182]
[1763652942559,0.117,2980.9,2979.9,0.4724]
[1763652942764,3.35633414,2981.3,2980.1,0.90699264]
[1763652942952,3.35633414,2981.3,2980.3,3.3553669]
[1763652942953,6.82766828,2981.3,2980.3,3.3553669]
[1763652943133,6.82766828,2981.3,2980.3,6.7107338]
[1763652943458,6.82766828,2981.3,2980.2,1.24959366]
[1763652943658,10.18200242,2981.3,2980.2,0.4724]
[1763652943964,0.119,2981.3,2980.3,0.4724]
[1763652944132,3.47328397,2981.3,2980.3,0.4724]
[1763652944463,0.002,2981.3,2981.2,0.182]
[1763652944901,0.002,2981.3,2980.4,0.4724]
[1763652944902,3.35624143,2981.3,2980.4,0.4724]
[1763652945076,0.002,2981.3,2980.5,6.7102835]
[1763652945277,0.002,2981.3,2980.6,0.71826835]
[1763652945593,0.002,2981.3,2980.6,1.19066835]
[1763652945793,0.002,2981.3,2980.7,0.4724]
[1763652947197,0.002,2981.3,2980.7,7.1821582]
[1763652947569,0.002,2981.3,2980.2,4.26239508]
[1763652947570,0.1704,2980.8,2980.1,0.182]
[1763652947811,0.117,2980.9,2980.1,4.00993805]
[1763652948012,0.117,2980.9,2980.2,0.4724]
[1763652948215,0.84280505,2981.3,2980.1,0.182]
[1763652948216,0.002,2981.3,2980.1,0.182]
[1763652948375,0.1704,2980.8,2980.1,0.182]
[1763652948768,0.1704,2980.8,2979.6,0.001]
[1763652948769,0.6639,2980.8,2979.6,0.001]
[1763652949006,10.06474989,2980.7,2979.6,0.001]
[1763652949229,0.90699264,2980.6,2979.6,0.001]
[1763652949507,1.40049264,2980.6,2979.6,0.001]
[1763652949708,0.4935,2980.5,2979.6,0.001]
[1763652950007,0.117,2980.4,2979.6,0.001]
[1763652950683,0.6105,2980.4,2979.6,0.001]
[1763652951042,10.0661007,2980.3,2979.6,0.001]
[1763652951367,7.2042338,2980.3,2979.6,0.001]
[1763652951573,3.8488669,2980.3,2979.6,0.001]
[1763652951872,3.3553669,2980.3,2979.6,0.001]
[1763652952076,6.7107338,2980.3,2979.6,0.001]
[1763652953143,3.47228281,2980.4,2979.6,0.001]
[1763652953345,0.34722828,2980.3,2979.6,0.001]
[1763652953506,10.67631994,2980.4,2979.6,0.001]
[1763652953709,7.32103713,2980.4,2979.6,0.001]
[1763652954340,0.117,2980.4,2979.7,0.4724]
[1763652954529,0.117,2980.4,2979.8,0.03355929]
[1763652954732,0.117,2980.4,2980.3,0.182]
[1763652954934,0.1704,2980.8,2980.3,0.182]
[1763652955242,0.117,2980.8,2979.6,0.001]
[1763652955450,0.117,2980.8,2980.0,0.182]
[1763652955926,0.117,2980.8,2980.0,0.6544]
[1763652956331,0.117,2980.8,2980.1,0.4724]
[1763652956913,3.47326701,2981.3,2980.2,0.405504]
[1763652957109,3.47332308,2981.3,2980.3,6.7107338]
[1763652957314,0.119,2981.3,2980.4,1.04716914]
[1763652957548,0.119,2981.3,2980.5,0.4724]
[1763652957845,3.47325219,2981.3,2980.5,0.4724]
[1763652958145,6.82750438,2981.3,2980.2,0.4724]
[1763652958368,10.18175657,2981.3,2980.2,0.4724]
[1763652958532,6.82750438,2981.3,2980.2,0.4724]
[1763652959158,6.82750438,2981.3,2980.3,3.3553669]
[1763652959356,3.47325219,2981.3,2980.4,0.7183237]
[1763652959560,0.119,2981.3,2980.5,0.4724]
[1763652959765,3.47324834,2981.3,2980.5,0.4724]
[1763652959966,0.119,2981.3,2980.5,0.4724]
[1763652960130,0.1182,2981.3,2980.5,0.4724]
[1763652960457,0.0012,2981.3,2981.2,0.6738]
[1763652960958,3.35545833,2981.3,2981.0,0.182]
[1763652961162,0.0012,2981.3,2980.8,0.182]
[1763652961328,0.0012,2981.3,2981.2,0.4918]
[1763652961766,0.002,2981.9,2981.5,0.4918]
[1763652961927,0.002,2981.9,2981.8,0.4918]
[1763652962128,0.002,2981.9,2981.2,0.4724]
[1763652962377,0.002,2981.9,2981.2,0.17921213]
[1763652962540,0.002,2981.9,2981.8,0.4918]
[1763652963055,0.002,2981.9,2981.2,1.67512129]
[1763652963259,0.002,2981.9,2981.3,3.35424143]
[1763652963604,0.171,2981.9,2981.2,3.82672052]
[1763652963864,0.002,2981.9,2981.3,0.94577132]
[1763652964055,0.002,2981.9,2981.8,0.4918]
[1763652964569,0.002,2981.9,2981.0,0.90699264]
[1763652964570,0.002,2981.9,2981.5,0.4724]
[1763652964933,0.002,2981.9,2981.8,0.4918]
[1763652965232,0.002,2981.9,2981.8,3.84547898]
[1763652965573,0.002,2981.9,2981.8,4.31787898]
[1763652965783,0.002,2982.2,2981.9,1.31249664]
[1763652966086,0.0012,2983.6,2982.1,0.587504]
[1763652966087,0.002,2982.5,2982.1,0.587504]
[1763652966231,0.002,2982.5,2982.3,0.405504]
[1763652966432,0.002,2982.5,2982.4,0.5894]
[1763652966625,0.002,2982.5,2982.4,0.994904]
[1763652966929,0.0012,2983.6,2982.5,0.405504]
[1763652967126,0.0012,2983.6,2982.5,0.877904]
[1763652967387,0.0012,2983.6,2983.3,0.182]
[1763652967524,0.0012,2983.6,2983.3,3.53399275]
[1763652967728,0.0012,2983.6,2983.3,4.35979203]
[1763652968464,0.0012,2983.6,2983.3,0.53539928]
[1763652968662,0.0012,2983.6,2983.3,4.03359275]
[1763652968852,0.0012,2983.6,2983.3,0.6816]
[1763652969052,0.0012,2983.6,2983.3,4.03359275]
[1763652970841,0.0012,2983.6,2983.3,4.43909675]
[1763652971041,0.0012,2983.6,2983.3,5.34608939]
[1763652971256,0.0012,2983.6,2983.3,7.15491951]
[1763652972786,0.0012,2983.6,2983.4,1.31249664]
[1763652972946,0.0012,2983.6,2983.5,0.4761]
[1763652973147,0.0012,2983.6,2983.5,1.381204]
[1763652973384,0.0012,2983.6,2983.5,1.497204]
[1763652973682,0.0012,2983.6,2983.5,5.89966328]
[1763652973885,0.0012,2983.6,2983.5,6.80665592]
[1763652974184,0.002,2983.9,2983.5,6.80665592]
[1763652974185,0.002,2983.9,2983.6,1.78859664]
[1763652974371,0.002,2984.9,2983.9,0.405504]
[1763652974575,0.002,2984.9,2983.8,0.4761]
[1763652974576,0.002,2984.9,2984.8,8.26031865]
[1763652974775,0.002,2984.9,2984.8,10.10934316]
[1763652974984,0.002,2984.9,2984.8,10.60894316]
[1763652975354,0.002,2985.5,2984.9,0.405504]
[1763652975590,0.002,2985.5,2985.1,0.90699264]
[1763652975754,0.002,2985.5,2985.1,1.92809664]
[1763652975955,0.002,2985.5,2985.1,3.84423665]
[1763652976367,0.002,2985.5,2985.1,1.81209664]
[1763652976678,0.002,2985.5,2985.1,1.92809664]
[1763652977005,0.002,2985.5,2984.8,0.1956]